{"text_format":"1","workbook":"xlsx","n_sheets":15,"sheets":["кмпл2","кмпл3","кмтл1","КМТЛ № 2","КМКШВЛ","ТМО 0712020","перинальний","кмкоц","соціотерапія","чорнобиль","центр мікрохірургії ока","центр спорт медицини","трансп кіст мозку","дитяч нейрохірургія","академія здоров людини"],"not_rendered":{"charts":0,"images":0,"macros":1,"external_links":0,"defined_names":13,"comments":0,"pivot_tables":0},"unopened":[],"bounds":{"document_bytes":16777216,"sheet_cells":100000,"rows_first":2000,"rows_last":500,"rows_between":2000,"halvings":0,"cell_chars":16384,"cell_head_chars":4096},"cells_cut":1,"cells_raw":0,"read":"whole","date_system":"1900"}

{"sheet":"кмпл2","index":0,"n_rows":56,"n_cols":11,"rows_kept":56,"cut":false,"hidden":false,"merged":[[52,6,52,7],[54,6,54,7],[2,1,2,9],[3,0,3,10],[4,0,5,0],[4,1,5,1],[4,2,4,4],[4,5,5,5],[4,6,4,9],[4,10,5,10]]}
[]
[]
[null,"ІНФОРМАЦІЯ                                                                                                                                                                                                                                                                                                                                                                                                                    про надходження і використання благодійних пожертв від фізичних та юридичних осіб                                                                                                                                                     по Київській міській психоневрологічній лікарні № 2  за  ІV квартал 2019 року "]
["                                                                                                                                                                                                                найменування закладу охорони здоров′я"]
["№ пп","Найменування юридичної особи (або позначення фізичної особи)","Благодійні пожертви, що були отримані закладом охорони здоров'я від фізичних та юридичних осіб",null,null,"Всього отримано благодійних пожертв, тис. грн","Використання закладом охорони здоров'я благодійних пожертв, отриманих у грошовій (товари і послуг) формі",null,null,null,"Залишок невикористаних грошових коштів, товарів та послуг на кінець звітного періоду,            тис. грн"]
[null,null,"В грошовій форм, тис. грн","В  натуральній формі (товари і послуги),    тис. грн","Перелік товарів і послуг в натуральній формі (канцтовари, господарські товари, будівельні товари, медикаменти та перев'язувальні матеріали, продукти харчування, м\"який інвентар, основні засоби та інші)",null,"Напрямки використання у грошовій формі (стаття витрат)","Сума,          тис. грн","Перелік використаних товарів та послуг у натуральній формі  (канцтовари, господарські товари, будівельні товари, медикаменти та перев'язувальні матеріали, продукти харчування, м\"який інвентар, основні засоби та інші)","Сума,          тис. грн"]
[1,"Фоп Буренок Т.І.",null,0.39900000000000002,"продукти харчування",{"$f":"SUM(C7,D7)","v":0.39900000000000002},null,null,"продукти харчування",0.4]
[2,"Фізична особа",29.79,null,null,{"$f":"SUM(C8,D8)","v":29.79},2210,7.16,"комп'ютерні компоненти"]
[null,null,null,null,null,null,2210,7.19,"марковані конверти"]
[null,null,null,null,null,0,2210,9.93,"господарчі товари"]
[null,null,null,null,null,0,2220,7.18,"лікарські засоби"]
[null,null,null,null,null,0,2240,5.86,"послуги з поточного ремонту водопров. Мережі"]
[null,null,null,null,null,0,2240,2.5,"послуги з поточного ремонту вимірюв приладдя"]
[null,null,null,null,null,0,2275,4.32,"послуга з вивезення ВГВ"]
[null,null,null,null,null,0,3110,27.94,"комп'ютери в комплекті"]
[null,null,null,null,null,0]
[null,null,null,null,null,0]
[null,null,null,null,null,0]
[null,null,null,null,null,0]
[null,null,null,null,null,0]
[null,null,null,null,null,0]
[null,null,null,null,null,0]
[null,null,null,null,null,0]
[null,null,null,null,null,0]
[null,null,null,null,null,0]
[null,null,null,null,null,0]
[null,null,null,null,null,0]
[null,null,null,null,null,0]
[null,null,null,null,null,0]
[null,null,null,null,null,0]
[null,null,null,null,null,0]
[null,null,null,null,null,0]
[null,null,null,null,null,0]
[null,null,null,null,null,0]
[null,null,null,null,null,0]
[null,null,null,null,null,0]
[null,null,null,null,null,0]
[null,null,null,null,null,0]
[null,null,null,null,null,0]
[null,null,null,null,null,0]
[null,null,null,null,null,0]
[null,null,null,null,null,0]
[null,null,null,null,null,0]
[null,null,null,null,null,0]
[null,null,null,null,null,0]
[null,null,null,null,null,0]
[null,null,null,null,null,0]
[null,null,null,null,null,0]
[null,null,null,null,null,0]
[null,"ВСЬОГО по закладу",{"$f":"SUM(C7:C49)","v":29.79},{"$f":"SUM(D7:D49)","v":0.39900000000000002},null,30.189,null,{"$f":"SUM(H7:H49)","v":72.08},null,{"$f":"SUM(J7:J49)","v":0.4},1.8]
[]
[]
[null,"Голова комісії з реорганізації",null,null,null,null,"Петро ЛІХТАНСЬКИЙ"]
[null,null,null,null,null,"(підпис)           (ініціали і прізвище) "]
[null,"Заступник голови комісії з реорганізації - головний бухгалтер",null,null,null,null,"Світлана Сахно"]
[null,null,null,null,null,"(підпис)           (ініціали і прізвище) "]

{"sheet":"кмпл3","index":1,"n_rows":53,"n_cols":11,"rows_kept":53,"cut":false,"hidden":false,"merged":[[49,6,49,7],[51,6,51,7],[0,8,0,10],[1,8,1,11],[2,1,2,9],[3,0,3,10],[4,0,5,0],[4,1,5,1],[4,2,4,4],[4,5,5,5],[4,6,4,9],[4,10,5,10]]}
[null,null,null,null,null,null,null,null,"          Додаток до листа"]
[null,null,null,null,null,null,null,null,"         від  01.04.2019 № 061-3533"]
[null,"ІНФОРМАЦІЯ                                                                                                                                                                                                                                                                                                                                                                                                                    про надходження і використання благодійнихпожертв від фізичних та юридичних осіб                                                                                                                                                     _Київської міської психоневрологічної лікарні №3 за 4 квартал 2019 року "]
["                                                                                                                                            найменування закладу охорони здоров′я"]
["№ пп","Найменування юридичної особи (або позначення фізичної особи)","Благодійні пожертви, що були отримані закладом охорони здоров'я від фізичних та юридичних осіб",null,null,"Всього отримано благодійних пожертв, тис. грн","Використання закладом охорони здоров'я благодійних пожертв, отриманих у грошовій (товари і послуг) формі",null,null,null,"Залишок невикористаних грошових коштів, товарів та послуг на кінець звітного періоду,            тис. грн"]
[null,null,"В грошовій форм, тис. грн","В  натуральній формі (товари і послуги),    тис. грн","Перелік товарів і послуг в натуральній формі (канцтовари, господарські товари, будівельні товари, медикаменти та перев'язувальні матеріали, продукти харчування, м\"який інвентар, основні засоби та інші)",null,"Напрямки використання у грошовій формі (стаття витрат)","Сума,          тис. грн","Перелік використаних товарів та послуг у натуральній формі  (канцтовари, господарські товари, будівельні товари, медикаменти та перев'язувальні матеріали, продукти харчування, м\"який інвентар, основні засоби та інші)","Сума,          тис. грн"]
[null,"Фізична особа",115.62,11,"миючі засоби",{"$f":"SUM(C7,D7)","v":126.62},2210,null,"миючі засоби",11]
[null,null,null,19.98,"інвентар, меблі",{"$f":"SUM(C8,D8)","v":19.98},null,28.3,"інвентар, меблі",{"$f":"D8","v":19.98}]
[null,"Благодійний фонд \"Фундація АНТИСНІД-Україна\"",null,2.2000000000000002,"вироби медичного призначення",2.2000000000000002,null,null,"вироби медичного призначення",2.2000000000000002]
[null,null,null,23,"послуги з встановлення металопластикових конструкцій",23,null,null,"послуги з встановлення металопластикових конструкцій",23]
[null,null,null,null,null,0]
[null,null,null,null,null,0]
[null,null,null,null,null,0]
[null,null,null,null,null,0]
[null,null,null,null,null,0]
[null,null,null,null,null,0]
[null,null,null,null,null,0]
[null,null,null,null,null,0]
[null,null,null,null,null,0]
[null,null,null,null,null,0]
[null,null,null,null,null,0]
[null,null,null,null,null,0]
[null,null,null,null,null,0]
[null,null,null,null,null,0]
[null,null,null,null,null,0]
[null,null,null,null,null,0]
[null,null,null,null,null,0]
[null,null,null,null,null,0]
[null,null,null,null,null,0]
[null,null,null,null,null,0]
[null,null,null,null,null,0]
[null,null,null,null,null,0]
[null,null,null,null,null,0]
[null,null,null,null,null,0]
[null,null,null,null,null,0]
[null,null,null,null,null,0]
[null,null,null,null,null,0]
[null,null,null,null,null,0]
[null,null,null,null,null,0]
[null,null,null,null,null,0]
[null,null,null,null,null,0]
[null,null,null,null,null,0]
[null,null,null,null,null,0]
[null,null,null,null,null,0]
[null,null,null,null,null,0]
[null,null,null,null,null,0]
[null,"ВСЬОГО по закладу",{"$f":"SUM(C7:C46)","v":115.62},{"$f":"SUM(D7:D46)","v":56.18},null,171.8,null,{"$f":"SUM(H7:H46)","v":28.3},null,{"$f":"SUM(J7:J46)","v":56.18},{"$f":"C47-H47","v":87.320000000000007}]
[]
[]
[null,"Голова комісії з реорганізації",null,null,null,null,"І.В.Врублевська"]
[null,null,null,null,null,"(підпис)           (ініціали і прізвище) "]
[null,"Головний бухгалтер",null,null,null,null,"О.Г.Ященко"]
[null,null,null,null,null,"(підпис)           (ініціали і прізвище) "]

{"sheet":"кмтл1","index":2,"n_rows":58,"n_cols":11,"rows_kept":58,"cut":false,"hidden":false,"merged":[[54,6,54,7],[56,6,56,7],[0,9,0,11],[1,9,1,11],[2,1,2,9],[3,0,3,10],[4,0,5,0],[4,1,5,1],[4,2,4,4],[4,5,5,5],[4,6,4,9],[4,10,5,10]]}
[null,null,null,null,null,null,null,null,null,"          Додаток до листа"]
[null,null,null,null,null,null,null,null,null,"         від 30.12.2019 № 061-12683"]
[null,"ІНФОРМАЦІЯ                                                                                                                                                                                                                                                                                                                                                                                                                    про надходження і використання благодійних пожертв від фізичних та юридичних осіб                                                                                                                                                     _Київська міська туберкульозна лікаря №1 з диспансерним відділеням_за_ІV_квартал_2019_року "]
["                                                                                                                                            найменування закладу охорони здоров′я"]
["№ пп","Найменування юридичної особи (або позначення фізичної особи)","Благодійні пожертви, що були отримані закладом охорони здоров'я від фізичних та юридичних осіб",null,null,"Всього отримано благодійних пожертв, тис. грн","Використання закладом охорони здоров'я благодійних пожертв, отриманих у грошовій (товари і послуг) формі",null,null,null,"Залишок невикористаних грошових коштів, товарів та послуг на кінець звітного періоду,            тис. грн"]
[null,null,"В грошовій форм, тис. грн","В  натуральній формі (товари і послуги),    тис. грн","Перелік товарів і послуг в натуральній формі (канцтовари, господарські товари, будівельні товари, медикаменти та перев'язувальні матеріали, продукти харчування, м\"який інвентар, основні засоби та інші)",null,"Напрямки використання у грошовій формі (стаття витрат)","Сума,          тис. грн","Перелік використаних товарів та послуг у натуральній формі  (канцтовари, господарські товари, будівельні товари, медикаменти та перев'язувальні матеріали, продукти харчування, м\"який інвентар, основні засоби та інші)","Сума,          тис. грн"]
[1,"Благодійний фонд                    \"100 відсотів життя. Київський регіон\" ",null,{"$f":"0.772+10.234+1.283","v":12.289},"технічне обладнання",{"$f":"SUM(C7,D7)","v":12.289},null,null,"технічне обладнання",12.29]
[null,null,null,{"$f":"6.558+0.516","v":7.0739999999999998},"витратні матеріали",{"$f":"SUM(C8,D8)","v":7.0739999999999998},null,null,"витратні матеріали",7.07]
[null,null,null,{"$f":"3.278+6.105+0.555","v":9.9380000000000006},"м'який інвентар",{"$f":"SUM(C9,D9)","v":9.9380000000000006},null,null,"м'який інвентар",9.94]
[null,null,null,{"$f":"6.82+24.964","v":31.783999999999999},"обладнання довгострокового користування",{"$f":"SUM(C10,D10)","v":31.783999999999999},null,null,"обладнання довгострокового користування",31.78]
[2,"Благодійна організація \"Фонд Олени Пінчук\"",null,{"$f":"3.986+13.92+4.911","v":22.817},"витратні матеріали",22.817,null,null,"витратні матеріали",22.82]
[null,null,null,{"$f":"6.661","v":6.6609999999999996},"медикаменти ",6.6609999999999996,null,null,"медикаменти ",6.66]
[null,null,null,{"$f":"10.17+10.17+5.07","v":25.41},"м'який інвентар",{"$f":"SUM(C13,D13)","v":25.41},null,null,"м'який інвентар",{"$f":"10.17+10.17+5.07","v":25.41}]
[3,"Департамент соціальної політики виконавчого органу Київської міської ради (Київської міської державної адміністрація) згідно міської цільової програми «Турбота. Назустріч киянам»",null,84.6,"обладнання довгострокового користування - пандус",{"$f":"SUM(C14,D14)","v":84.6},null,null,"обладнання довгострокового користування - пандус",84.6]
[4,"ДУ «Центр громадського здоров’я Міністерства охорони здоров’я України» за кошти Глобального фонду для боротьби СНІДом, туберкульозом та малярією",null,69.900000000000006,"обладнання довгострокового користування - ноутбуки",69.900000000000006,null,null,"обладнання довгострокового користування - ноутбуки",69.900000000000006]
[null,null,null,null,null,0]
[null,null,null,null,null,0]
[null,null,null,null,null,0]
[null,null,null,null,null,0]
[null,null,null,null,null,0]
[null,null,null,null,null,0]
[null,null,null,null,null,0]
[null,null,null,null,null,0]
[null,null,null,null,null,0]
[null,null,null,null,null,0]
[null,null,null,null,null,0]
[null,null,null,null,null,0]
[null,null,null,null,null,0]
[null,null,null,null,null,0]
[null,null,null,null,null,0]
[null,null,null,null,null,0]
[null,null,null,null,null,0]
[null,null,null,null,null,0]
[null,null,null,null,null,0]
[null,null,null,null,null,0]
[null,null,null,null,null,0]
[null,null,null,null,null,0]
[null,null,null,null,null,0]
[null,null,null,null,null,0]
[null,null,null,null,null,0]
[null,null,null,null,null,0]
[null,null,null,null,null,0]
[null,null,null,null,null,0]
[null,null,null,null,null,0]
[null,null,null,null,null,0]
[null,null,null,null,null,0]
[null,null,null,null,null,0]
[null,null,null,null,null,0]
[null,null,null,null,null,0]
[null,null,null,null,null,0]
[null,null,null,null,null,0]
[null,"ВСЬОГО по закладу",{"$f":"SUM(C7:C51)","v":0},{"$f":"SUM(D7:D51)","v":270.47299999999996},null,270.47299999999996,null,{"$f":"SUM(H7:H51)","v":0},null,{"$f":"SUM(J7:J51)","v":270.47000000000003},{"$f":"C52-H52","v":0}]
[]
[]
[null,"Голова комісії",null,null,null,null,"Павленко С.Г."]
[null,null,null,null,null,"(підпис)           (ініціали і прізвище) "]
[null,"Член комісії",null,null,null,null,"Смаглюк Н.І."]
[null,null,null,null,null,"(підпис)           (ініціали і прізвище) "]

{"sheet":"КМТЛ № 2","index":3,"n_rows":55,"n_cols":13,"rows_kept":55,"cut":false,"hidden":false,"merged":[[51,6,51,7],[53,6,53,7],[2,1,2,9],[3,0,3,10],[4,0,5,0],[4,1,5,1],[4,2,4,4],[4,5,5,5],[4,6,4,9],[4,10,5,10]]}
[null,null,null,null,null,null,null,null,null,null,null,null,"          Додаток до листа"]
[null,null,null,null,null,null,null,null,null,null,null,null,"             від ________ 2018 № ______"]
[null,"ІНФОРМАЦІЯ                                                                                                                                                                                                                                                     "]
["                                                                                                                                            найменування закладу охорони здоров′я"]
["№ пп","Найменування юридичної особи (або позначення фізичної особи)","Благодійні пожертви, що були отримані закладом охорони здоров'я від фізичних та юридичних осіб",null,null,"Всього отримано благодійних пожертв, тис. грн","Використання закладом охорони здоров'я благодійних пожертв, отриманих у грошовій (товари і послуг) формі",null,null,null,"Залишок невикористаних грошових коштів, товарів та послуг на кінець звітного періоду,            тис. грн"]
[null,null,"В грошовій форм, тис. грн","В  натуральній формі (товари і послуги),    тис. грн","Перелік товарів і послуг в натуральній формі (канцтовари, господарські товари, будівельні товари, медикаменти та перев'язувальні матеріали, продукти харчування, м\"який інвентар, основні засоби та інші)",null,"Напрямки використання у грошовій формі (стаття витрат)","Сума,          тис. грн","Перелік використаних товарів та послуг у натуральній формі  (канцтовари, господарські товари, будівельні товари, медикаменти та перев'язувальні матеріали, продукти харчування, м\"який інвентар, основні засоби та інші)","Сума,          тис. грн"]
[1,"ДП \"Укрмедпостач\" МОЗ України",null,16.408999999999999,"наркотичні лікарські засоби для замісної терапії",{"$f":"SUM(C7,D7)","v":16.408999999999999},null,null,"наркотичні лікарські засоби для замісної терапії",16.408999999999999]
[null,null,null,null,null,0]
[null,null,null,null,null,0]
[null,null,null,null,null,0]
[null,null,null,null,null,0]
[null,null,null,null,null,0]
[null,null,null,null,null,0]
[null,null,null,null,null,0]
[null,null,null,null,null,0]
[null,null,null,null,null,0]
[null,null,null,null,null,0]
[3,null,null,null,null,0]
[null,null,null,null,null,0]
[null,null,null,null,null,0]
[null,null,null,null,null,0]
[null,null,null,null,null,0]
[null,null,null,null,null,0]
[null,null,null,null,null,0]
[null,null,null,null,null,0]
[null,null,null,null,null,0]
[null,null,null,null,null,0]
[null,null,null,null,null,0]
[null,null,null,null,null,0]
[null,null,null,null,null,0]
[null,null,null,null,null,0]
[null,null,null,null,null,0]
[null,null,null,null,null,0]
[null,null,null,null,null,0]
[null,null,null,null,null,0]
[null,null,null,null,null,0]
[null,null,null,null,null,0]
[null,null,null,null,null,0]
[null,null,null,null,null,0]
[null,null,null,null,null,0]
[null,null,null,null,null,0]
[null,null,null,null,null,0]
[null,null,null,null,null,0]
[null,null,null,null,null,0]
[null,null,null,null,null,0]
[null,null,null,null,null,0]
[null,null,null,null,null,0]
[null,null,null,null,null,0]
[null,"ВСЬОГО по закладу",{"$f":"SUM(C7:C48)","v":0},{"$f":"SUM(D7:D48)","v":16.408999999999999},null,16.408999999999999,null,{"$f":"SUM(H7:H48)","v":0},null,{"$f":"SUM(J7:J48)","v":16.408999999999999},{"$f":"C49-H49","v":0}]
[]
[]
[null,"Заступник керівника установи",null,null,null,null,"Целюк Г.Б."]
[null,null,null,null,null,"(підпис)           (ініціали і прізвище) "]
[null,"Головний бухгалтер",null,null,null,null,"Євенко А.М."]
[null,null,null,null,null,"(підпис)           (ініціали і прізвище) "]

{"sheet":"КМКШВЛ","index":4,"n_rows":56,"n_cols":11,"rows_kept":56,"cut":false,"hidden":false,"merged":[[6,0,8,0],[9,0,10,0],[11,0,12,0],[13,0,14,0],[54,6,54,7],[0,8,0,10],[1,8,1,10],[2,1,2,9],[3,0,3,10],[4,0,5,0],[4,1,5,1],[4,2,4,4],[4,5,5,5],[4,6,4,9],[4,10,5,10]]}
[null,null,null,null,null,null,null,null,"          Додаток до листа"]
[null,null,null,null,null,null,null,null,"від 25.07.2017 №848"]
[null,"ІНФОРМАЦІЯ  по  КИЇВСЬКІЙ МІСЬКІЙ КЛІНІЧНІЙ  ШКІРНО-ВЕНЕРОЛОГІЧНІЙ ЛІКАРНІ   за  4 квартал 2019року "]
["                                                                                                                                            найменування закладу охорони здоров′я"]
["Період","Найменування юридичної особи (або позначення фізичної особи)","Благодійні пожертви, що були отримані закладом охорони здоров'я від фізичних та юридичних осіб",null,null,"Всього отримано благодійних пожертв, тис. грн","Використання закладом охорони здоров'я благодійних пожертв, отриманих у грошовій (товари і послуг) формі",null,null,null,"Залишок невикористаних грошових коштів, товарів та послуг на кінець звітного періоду,            тис. грн"]
[null,null,"В грошовій форм, тис. грн","В  натуральній формі (товари і послуги),    тис. грн","Перелік товарів і послуг в натуральній формі (канцтовари, господарські товари, будівельні товари, медикаменти та перев'язувальні матеріали, продукти харчування, м\"який інвентар, основні засоби та інші)",null,"Напрямки використання у грошовій формі (стаття витрат)","Сума,          тис. грн","Перелік використаних товарів та послуг у натуральній формі  (канцтовари, господарські товари, будівельні товари, медикаменти та перев'язувальні матеріали, продукти харчування, м\"який інвентар, основні засоби та інші)","Сума,          тис. грн"]
["4квартал","Фізичні особи",null,15.18,"господарські товари",{"$f":"SUM(C7,D7)","v":15.18},2210,15.18,"господарські товари",15.18]
[null,"ТОВ \"ЛЮМ ҆҆ЄРА ФАРМ\"",null,20,"інвентар",{"$f":"SUM(C8,D8)","v":20},2210,20,"інвентар",20]
[null,"ТОВ \"ГЛЕДФАРМ ЛТД\"",null,4.22,"медикаменти",{"$f":"SUM(C9,D9)","v":4.22},2220,4.22,"медикаменти",4.22]
[null,"ДУ \"Центр громадського здоров҆ я МОЗ України\"",null,0.89,"медикаменти",{"$f":"SUM(C10,D10)","v":0.89},2220,0.89,"медикаменти",0.89]
[null,"Фізичні особи",945.34,null,null,{"$f":"SUM(C11,D11)","v":945.34},2210,161.43,"меблі",161.43]
[null,"ТОВ \"Краматорський феросплавний завод\"",85,null,null,0.81,2240,322.68,"поточний ремонт приміщень",322.68]
[null,"ТОВ \"Краматорський металопрокатний  завод\"",25,null,null,{"$f":"SUM(C13,D13)","v":25},2250,20.100000000000001,"проїзні квитки",20.100000000000001]
[null,null,null,null,null,0,2273,30.82,"оплата електроенергії",30.82]
[null,null,null,null,null,0,3110,346.79,"мед. обладнання",346.79]
[null,null,null,null,null,0]
[null,null,null,null,null,0]
[null,null,null,null,null,0]
[]
[]
[null,null,null,null,null,{"$f":"SUM(C21,D21)","v":0}]
[null,null,null,null,null,0]
[null,null,null,null,null,0]
[null,null,null,null,null,0]
[null,null,null,null,null,0]
[null,null,null,null,null,0]
[null,null,null,null,null,0]
[null,null,null,null,null,0]
[null,null,null,null,null,0]
[null,null,null,null,null,0]
[null,null,null,null,null,0]
[null,null,null,null,null,0]
[null,null,null,null,null,0]
[null,null,null,null,null,0]
[null,null,null,null,null,0]
[null,null,null,null,null,0]
[null,null,null,null,null,0]
[null,null,null,null,null,0]
[null,null,null,null,null,0]
[null,null,null,null,null,0]
[null,null,null,null,null,0]
[null,null,null,null,null,0]
[null,null,null,null,null,0]
[null,null,null,null,null,0]
[null,null,null,null,null,0]
[null,null,null,null,null,0]
[null,null,null,null,null,0]
[null,null,null,null,null,0]
[null,null,null,null,null,0]
[null,null,null,null,null,0]
[null,null,null,null,null,0]
[null,null,null,null,null,0]
[null,"ВСЬОГО по закладу",{"$f":"SUM(C7:C52)","v":1055.3400000000001},{"$f":"SUM(D7:D52)","v":40.29},null,1095.6300000000001,null,{"$f":"SUM(H7:H52)","v":922.11000000000013},null,{"$f":"SUM(J7:J52)","v":922.11000000000013},{"$f":"C53+D53-H53","v":173.51999999999998}]
[]
[null,"Головний бухгалтер",null,null,null,null,"С.І.Кущ"]
[null,null,null,null,null,"(підпис)           (ініціали і прізвище) "]

{"sheet":"ТМО 0712020","index":5,"n_rows":62,"n_cols":13,"rows_kept":62,"cut":false,"hidden":false,"merged":[[58,6,58,7],[60,6,60,7],[2,1,2,9],[3,0,3,10],[4,0,5,0],[4,1,5,1],[4,2,4,4],[4,5,5,5],[4,6,4,9],[4,10,5,10]]}
[null,null,null,null,null,null,null,null,null,null,null,null,"          Додаток до листа"]
[null,null,null,null,null,null,null,null,null,null,null,null,"             від ________ 2018 № ______"]
[null,"ІНФОРМАЦІЯ                                                                                                                                                                                                                                                     "]
["                                                                                                                                            найменування закладу охорони здоров′я"]
["№ пп","Найменування юридичної особи (або позначення фізичної особи)","Благодійні пожертви, що були отримані закладом охорони здоров'я від фізичних та юридичних осіб",null,null,"Всього отримано благодійних пожертв, тис. грн","Використання закладом охорони здоров'я благодійних пожертв, отриманих у грошовій (товари і послуг) формі",null,null,null,"Залишок невикористаних грошових коштів, товарів та послуг на кінець звітного періоду,            тис. грн"]
[null,null,"В грошовій форм, тис. грн","В  натуральній формі (товари і послуги),    тис. грн","Перелік товарів і послуг в натуральній формі (канцтовари, господарські товари, будівельні товари, медикаменти та перев'язувальні матеріали, продукти харчування, м\"який інвентар, основні засоби та інші)",null,"Напрямки використання у грошовій формі (стаття витрат)","Сума,          тис. грн","Перелік використаних товарів та послуг у натуральній формі  (канцтовари, господарські товари, будівельні товари, медикаменти та перев'язувальні матеріали, продукти харчування, м\"який інвентар, основні засоби та інші)","Сума,          тис. грн"]
[null,"ПТД № 1",null,null,null,{"$f":"SUM(C7,D7)","v":0}]
[1,"Благодійний фонд \"100 відсотків життя. Київський регіон\"",null,9.1999999999999993,"Ноутбук",9.1999999999999993,null,null,"Благодійний фонд \"100 відсотків життя. Київський регіон\"",9.1999999999999993]
[2,"ДУ \"Центр громадського здоров'я МОЗ України\"  МБФ \"Альянс громадського здоров'я\"",null,46.6,"Ноутбуки",46.6,null,null,"ДУ \"Центр громадського здоров'я МОЗ України\"  МБФ \"Альянс громадського здоров'я\"",46.6]
[null,null,null,null,null,0]
["І","КМТЛ № 1",null,null,null,0]
[1,"Благодійний фонд                    \"100 відсотів життя. Київський регіон\" ",null,{"$f":"0.772+10.234+1.283","v":12.289},"технічне обладнання",12.289,null,null,"технічне обладнання",12.29]
[null,null,null,{"$f":"6.558+0.516","v":7.0739999999999998},"витратні матеріали",7.0739999999999998,null,null,"витратні матеріали",7.07]
[null,null,null,{"$f":"3.278+6.105+0.555","v":9.9380000000000006},"м'який інвентар",9.9380000000000006,null,null,"м'який інвентар",9.94]
[null,null,null,{"$f":"6.82+24.964","v":31.783999999999999},"обладнання довгострокового користування",31.783999999999999,null,null,"обладнання довгострокового користування",31.78]
[2,"Благодійна організація \"Фонд Олени Пінчук\"",null,{"$f":"3.986+13.92+4.911","v":22.817},"витратні матеріали",22.817,null,null,"витратні матеріали",22.82]
[null,null,null,{"$f":"6.661","v":6.6609999999999996},"медикаменти ",6.6609999999999996,null,null,"медикаменти ",6.66]
[null,null,null,{"$f":"10.17+10.17+5.07","v":25.41},"м'який інвентар",25.41,null,null,"м'який інвентар",{"$f":"10.17+10.17+5.07","v":25.41}]
[null,"Департамент соціальної політики виконавчого органу Київської міської ради (Київської міської державної адміністрація) згідно міської цільової програми «Турбота. Назустріч киянам»",null,84.6,"обладнання довгострокового користування - пандус",null,null,null,"обладнання довгострокового користування - пандус",84.6]
[null,"ДУ «Центр громадського здоров’я Міністерства охорони здоров’я України» за кошти Глобального фонду для боротьби СНІДом, туберкульозом та малярією",null,69.900000000000006,"обладнання довгострокового користування - ноутбуки",{"$f":"SUM(C20,D20)","v":69.900000000000006},null,null,"обладнання довгострокового користування - ноутбуки",69.900000000000006]
[]
["ІІ","КМТЛ № 2",null,null,null,{"$f":"SUM(C22,D22)","v":0}]
[1,"ДП \"Укрмедпостач\" МОЗ України",null,16.408999999999999,"наркотичні лікарські засоби для замісної терапії",16.408999999999999,null,null,"наркотичні лікарські засоби для замісної терапії",16.408999999999999]
[null,null,null,null,null,0]
[null,null,null,null,null,0]
[null,null,null,null,null,0]
[null,null,null,null,null,0]
[null,null,null,null,null,0]
[null,null,null,null,null,0]
[null,null,null,null,null,0]
[null,null,null,null,null,0]
[null,null,null,null,null,0]
[null,null,null,null,null,0]
[null,null,null,null,null,0]
[null,null,null,null,null,0]
[null,null,null,null,null,0]
[null,null,null,null,null,0]
[null,null,null,null,null,0]
[null,null,null,null,null,0]
[null,null,null,null,null,0]
[null,null,null,null,null,0]
[null,null,null,null,null,0]
[null,null,null,null,null,0]
[null,null,null,null,null,0]
[null,null,null,null,null,0]
[null,null,null,null,null,0]
[null,null,null,null,null,0]
[null,null,null,null,null,0]
[null,null,null,null,null,0]
[null,null,null,null,null,0]
[null,null,null,null,null,0]
[null,null,null,null,null,0]
[null,null,null,null,null,0]
[null,null,null,null,null,0]
[null,null,null,null,null,0]
[null,"ВСЬОГО по закладу",{"$f":"SUM(C11:C55)","v":0},{"$f":"SUM(D8:D55)","v":342.68200000000002},null,342.68200000000002,null,{"$f":"SUM(H11:H55)","v":0},null,{"$f":"SUM(J8:J55)","v":342.67899999999997},{"$f":"C56-H56","v":0}]
[]
[]
[null,"Заступник керівника установи",null,null,null,null,"Осауленко Н.В."]
[null,null,null,null,null,"(підпис)           (ініціали і прізвище) "]
[null,"Головний бухгалтер",null,null,null,null,"Твердохліб О.В."]
[null,null,null,null,null,"(підпис)           (ініціали і прізвище) "]

{"sheet":"перинальний","index":6,"n_rows":36,"n_cols":13,"rows_kept":36,"cut":false,"hidden":false,"merged":[[32,6,32,7],[34,6,34,7],[0,12,0,14],[1,12,1,15],[2,1,2,9],[3,0,3,10],[4,0,5,0],[4,1,5,1],[4,2,4,4],[4,5,5,5],[4,6,4,9],[4,10,5,10]]}
[null,null,null,null,null,null,null,null,null,null,null,null,"          Додаток до листа"]
[null,null,null,null,null,null,null,null,null,null,null,null,"         від 01.04.2019 №061-3533"]
[null,"ІНФОРМАЦІЯ                                                                                                                                                                                                                                                                                                                                                                                                                    про надходження і використання благодійних пожертв від фізичних та юридичних осіб                                                                                                                                                     Київського міського центру репродуктивної та перинатальної медицини за IV квартал 2019 року "]
["                                                                                                                                            найменування закладу охорони здоров′я"]
["№ пп","Найменування юридичної особи (або позначення фізичної особи)","Благодійні пожертви, що були отримані закладом охорони здоров'я від фізичних та юридичних осіб",null,null,"Всього отримано благодійних пожертв, тис. грн","Використання закладом охорони здоров'я благодійних пожертв, отриманих у грошовій (товари і послуг) формі",null,null,null,"Залишок невикористаних грошових коштів, товарів та послуг на кінець звітного періоду,            тис. грн"]
[null,null,"В грошовій форм, тис. грн","В  натуральній формі (товари і послуги),    тис. грн","Перелік товарів і послуг в натуральній формі (канцтовари, господарські товари, будівельні товари, медикаменти та перев'язувальні матеріали, продукти харчування, м\"який інвентар, основні засоби та інші)",null,"Напрямки використання у грошовій формі (стаття витрат)","Сума, тис. грн","Перелік використаних товарів та послуг у натуральній формі  (канцтовари, господарські товари, будівельні товари, медикаменти та перев'язувальні матеріали, продукти харчування, м\"який інвентар, основні засоби та інші)","Сума,          тис. грн"]
[1,"Фонд сприяння народжуваності в Україні (ПП \"Медіта\")",null,{"$f":"12.477+10.417+24.292","v":47.186},"медикаменти",{"$f":"SUM(C7,D7)","v":47.186},null,null,"медикаменти",{"$f":"12.477+10.417+24.292","v":47.186}]
[null,"КНП \"КМЦК\"",null,{"$f":"4.035+7.443+6.687+2.414+1.913","v":22.492000000000001},"компоненти і препарати крові",{"$f":"SUM(C8,D8)","v":22.492000000000001},null,null,"компоненти і препарати крові",{"$f":"4.035+7.443+6.687+2.414+1.913","v":22.492000000000001}]
[null,"ФО Щиголь В.А.",null,3.0609999999999999,"МФУ Brother DCP",3.0609999999999999,null,null,"МФУ Brother DCP",3.0609999999999999]
[null,"Одеський національний медичний університет",null,36.603999999999999,"Оргалутран",36.603999999999999,null,null,"Оргалутран",36.603999999999999]
[2,"Фізична особа",586.95699999999999,null,null,586.95699999999999]
[null,null,{"$cut":{"chars":32767,"head":"                                                                                                                                                                                                                                                                                                                                                                                                                                                                                                                                                                                                                                                                                                                                                                                                                                                                                                                                                                                                                                                                                                                                                                                                                                                                                                                                                                                                                                                                                                                                                                                                                                                                                                                                                                                                                                                                                                                                                                                                                                                                                                                                                                                                                                                                                                                                                                                                                                                                                                                                                                                                                                                                                                                                                                                                                                                                                                                                                                                                                                                                                                                                                                                                                                                                                                                                                                                                                                                                                                                                                                                                                                                                                                                                                                                                                                                                                                                                                                                                                                                                                                                                                                                                                                                                "}},null,null,0]
[null,null,null,null,null,0,2210,7.1,"меблі медичні"]
[null,null,null,null,null,0,2210,15.398999999999999,"товари господ. призначення"]
[null,null,null,null,null,0,2210,{"$f":"16.1","v":16.100000000000001},"офісні меблі"]
[null,null,null,null,null,0,2210,7.8,"постільна білизна"]
[null,null,null,null,null,0]
[null,null,null,null,null,0,2220,{"$f":"380","v":380},"медикаменти"]
[null,null,null,null,null,0,2220,10,"реактиви лабораторні"]
[null,null,null,null,null,0,2220,186.56,"покриття операційні"]
[]
[null,null,null,null,null,0,2240,3.79,"ремонт шлагбаума"]
[null,null,null,null,null,0,2240,7.15,"заправка картриджів"]
[null,null,null,null,null,0,2240,1.45,"ремонт комп.техніки"]
[null,null,null,null,null,0]
[null,null,null,null,null,0,2282,{"$f":"11.56+0.65+1.95","v":14.16},"курси"]
[]
[null,null,null,null,null,0]
[null,null,null,null,null,0]
[null,"ВСЬОГО по закладу",{"$f":"SUM(C7:C29)","v":586.95699999999999},{"$f":"SUM(D7:D29)","v":109.343},null,696.3,null,{"$f":"SUM(H7:H29)","v":649.50900000000001},null,{"$f":"SUM(J7:J29)","v":109.343},{"$f":"C30-H30","v":-62.552000000000021}]
[]
[]
[null,"Директор",null,null,null,null,"В.В.Камінський"]
[null,null,null,null,null,"(підпис)           (ініціали і прізвище) "]
[null,"Головний бухгалтер",null,null,null,null,"Л.В. Іванець"]
[null,null,null,null,null,"(підпис)           (ініціали і прізвище) "]

{"sheet":"кмкоц","index":7,"n_rows":174,"n_cols":11,"rows_kept":174,"cut":false,"hidden":false,"merged":[[170,6,170,7],[172,6,172,7],[0,1,0,9],[1,0,1,10],[2,0,3,0],[2,1,3,1],[2,2,2,4],[2,5,3,5],[2,6,2,9],[2,10,3,10]]}
[null,"ІНФОРМАЦІЯ                                                                                                                                                                                                                                                                                                                                                                                                                    про надходження і використання благодійних пожертв від фізичних та юридичних осіб                                                                                                                                                     Київський міський клінічний онкологічний центр за 4 квартал 2019 року "]
["                                                                                                                                            найменування закладу охорони здоров′я"]
["№ пп","Найменування юридичної особи (або позначення фізичної особи)","Благодійні пожертви, що були отримані закладом охорони здоров'я від фізичних та юридичних осіб",null,null,"Всього отримано благодійних пожертв, тис. грн","Використання закладом охорони здоров'я благодійних пожертв, отриманих у грошовій (товари і послуг) формі",null,null,null,"Залишок невикористаних грошових коштів, товарів та послуг на кінець звітного періоду,            тис. грн"]
[null,null,"В грошовій форм, тис. грн","В  натуральній формі (товари і послуги),    тис. грн","Перелік товарів і послуг в натуральній формі (канцтовари, господарські товари, будівельні товари, медикаменти та перев'язувальні матеріали, продукти харчування, м\"який інвентар, основні засоби та інші)",null,"Напрямки використання у грошовій формі (стаття витрат)","Сума,          тис. грн","Перелік використаних товарів та послуг у натуральній формі  (канцтовари, господарські товари, будівельні товари, медикаменти та перев'язувальні матеріали, продукти харчування, м\"який інвентар, основні засоби та інші)","Сума,          тис. грн"]
[1,"Фізичні особи",7295.1,null,null,{"$f":"C5","v":7295.1}]
[2,"ФОП Колодій",null,null,null,null,2220,115.6,"медикаменти"]
[3,"ФОП Чепак",null,null,null,null,2220,9,"леза"]
[4,"ТОВ Діалог-Діагностик",null,null,null,null,2220,{"$f":"232.49+12.62","v":245.11},"реактиви"]
[5,"ТОВ Санмей Україна",null,null,null,null,2220,4.9000000000000004,"реактиви"]
[6,"ФОП Михайленко І.Г.",null,null,null,null,2220,142.76,"реактиви"]
[7,"ФОП ПрохоренкоР.В.",null,null,null,null,2220,107.74,"реактиви"]
[8,"ТОВ Салюс",null,null,null,null,2220,3.23,"медикаменти"]
[9,"ТОВ Екомед",null,null,null,null,2220,12.54,"засоби мед.призначення"]
[10,"ТОВ Лабвіта",null,null,null,null,2220,2.98,"реактиви"]
[11,"БФ Східна зірка",null,15.8,"медикаменти",{"$f":"D15","v":15.8},2220,null,{"$f":"E15","v":"медикаменти"},{"$f":"F15","v":15.8}]
[12,"ТОВ Медичний центр М.Т.К.",null,791.8,"медикаменти",{"$f":"D16","v":791.8},2220,null,{"$f":"E16","v":"медикаменти"},791.8]
[13,"Святош.рай.орг.ТОВ Черв.",null,16.3,"медикаменти",16.3,2220,null,{"$f":"E17","v":"медикаменти"},16.3]
[14,"БФ Відродження",null,320.97000000000003,"медикаменти",320.97000000000003,2220,null,"медикаменти",320.97000000000003]
[15,"МБО Козацький фонд Альбатрос",null,1.1000000000000001,"медикаменти",1.1000000000000001,2220,null,"медикаменти",1.1000000000000001]
[16,"ТОВ Аптеки Фармасі",null,3,"медикаменти",3,2220,null,"медикаменти",3]
[17,"Благод.фонд Светер",null,19.55,"медикаменти",19.55,2220,null,"медикаменти",19.55]
[18,"ТОВ Юрія-Фарм",null,2272.5,"медикаменти",2272.5,2220,null,"медикаменти",2272.5]
[19,"ТОВ Фармпроект",null,118.1,"медикаменти",118.1,2220,null,"медикаменти",118.1]
[20,"БФ Таблеточки",null,10.88,"медикаменти",10.88,2220,null,"медикаменти",10.88]
[21,"Десн.район.орг.Тов.червон.хреста",null,33.450000000000003,"медикаменти",33.450000000000003,2220,null,"медикаменти",33.450000000000003]
[22,"ПП Лабораторія Ербіс",null,80,"медикаменти",80,2220,null,"медикаменти",80]
[23,"ТОВ Торговий дім Новофарм-біос",null,29.96,"медикаменти",29.96,2220,null,"медикаменти",29.96]
[24,"ТОВ Лікар",null,25.89,"медикаменти",25.89,2220,null,"медикаменти",25.89]
[25,"Ерітсідіс Стіліанос",null,112.21,"медикаменти",112.21,2220,null,"медикаменти",112.21]
[26,"ДП Укрмедпостач",null,44460.2,"хіміопрепарати",44460.2,2220,null,{"$f":"E30","v":"хіміопрепарати"},{"$f":"F30","v":44460.2}]
[27,"КНП КМЦК",null,1203.5,"кров",1203.5,2220,null,{"$f":"E31","v":"кров"},{"$f":"F31","v":1203.5}]
[28,"Фізична особа",null,11.5,"меблі",11.5,2210,null,{"$f":"E32","v":"меблі"},11.5]
[29,"БО Східна зірка",null,1.7,"канцтовари",1.7,2210,null,"канцтовари",1.7]
[30,"МБО Козацький фонд Альбатрос",null,10,"меблі",10,2210,null,"меблі",10]
[31,"Фізична особа",null,0.5,"відсмоктувач",0.5,2210,null,"відсмоктувач",0.5]
[32,"ФОП Поляков",null,0.5,"меблі",0.5,2210,null,"меблі",0.5]
[33,"БО ГО Ініціатива +",null,46.3,"мед.меблі",46.3,2210,null,"мед.меблі",{"$f":"F37","v":46.3}]
[34,"БФ Свої",null,19.809999999999999,"Ліжка баготоф.",19.809999999999999,2210,null,"Ліжка баготоф.",{"$f":"F38","v":19.809999999999999}]
[35,"Фіз.особа",null,{"$f":"0.26+0.2+0.25","v":0.71},"пральна машина",0.71,2210,null,"пральна машина",0.71]
[36,"БФ Свої",null,7.9,"Ліжко функціональне",7.9,2210,null,"Ліжко функціональне",7.9]
[37,"БФ Олива",null,0.6,"Ліжко ",0.6,2210,null,"Ліжко ",0.6]
[38,"БФ Ініциатива",null,6.8,"Ролатори , негатоскоп",6.8,2210,null,"Ролатори , негатоскоп",6.8]
[39,"БФ Свої",null,12.5,"Меблі",12.5,2210,null,"Меблі",12.5]
[40,"БФ Наша лепта",null,13.7,"Кондиціонер",13.7,2210,null,"Кондиціонер",13.7]
[41,"БФ Ініциатива ",null,6.4,"витратний матеріал",6.4,2210,null,{"$f":"E45","v":"витратний матеріал"},6.4]
[42,"КП ГІОЦ",null,68.900000000000006,"Комп\"ютери ",68.900000000000006,2210,null,{"$f":"E46","v":"Комп\"ютери "},68.900000000000006]
[43,"ТОВ Техноснаб",null,14.8,"Овочі",14.8,2230,null,"Овочі",14.8]
[44,"КП ГІОЦ",null,868.3,"Комп\"ютери ",868.3,3110,null,{"$f":"E48","v":"Комп\"ютери "},868.3]
[45,"БФ  Хранитель",null,19.899999999999999,"функціональне ліжко",19.899999999999999,3110,null,"функціональне ліжко",19.899999999999999]
[46,"БФ  Хранитель",null,23.3,"кондиціонери",23.3,3110,null,"кондиціонери",23.3]
[47,"ФОП  Бочарнікова ",null,13.91,"шафа для взуття",13.91,3110,null,"шафа для взуття",13.91]
[48,"ФОП  Бочарнікова ",null,82.85,{"$f":"I52","v":"дит.майданчик"},82.85,3110,null,"дит.майданчик",{"$f":"F52","v":82.85}]
[49,"Педіатри проти раку",null,6.55,{"$f":"I53","v":"пральна машина"},6.55,3110,null,"пральна машина",{"$f":"F53","v":6.55}]
[50,"БФ \"Відродження\"",null,243.96,"одноканальний ел.генератор",243.96,3110,null,{"$f":"E54","v":"одноканальний ел.генератор"},{"$f":"F54","v":243.96}]
[51,"БО \"Благодійний фонд розвитку іновацій медицини \"РІМОН\"",null,19,"шафа витяжна лабораторна",19,3110,null,{"$f":"E55","v":"шафа витяжна лабораторна"},{"$f":"F55","v":19}]
[52,"ТОВ НІЦ Сканер",null,null,"кольпоскоп",null,3110,142.19999999999999,"кольпоскоп"]
[53,"Тов Здраво",null,null,null,null,3110,7.8,"Лампа операційна "]
[54,"ПП Бутекс ",null,null,null,null,2240,4.8,"ТО обладнання "]
[55,"КП ГИОЦ",null,null,null,null,2240,9,"Обслуг прогр. Забезпеч."]
[56,"ПП Мальчуковський",null,null,null,null,2210,7,"Медбланки"]
[57,"ТОВ Укрмедлаб",null,null,null,null,2240,4.2,"міжлаб.порівняння"]
[58,"ФОП Кудла",null,null,null,null,2240,13.2,"інформ. Консульт"]
[59,"УПО в м. Києві",null,null,null,null,2240,120.5,"охорона "]
[60,"Катран ",null,null,null,null,2210,20.5,"меблі"]
[61,"ДСМ Трейд",null,null,null,null,2210,13,"принтер, сканер"]
[62,"Тов Кіспрі Україна",null,null,null,null,2210,6.7,"Кушетка медична"]
[63,"Київський крематорій",null,null,null,null,2240,{"$f":"6.2+4.3","v":10.5},"Кремація відходів"]
[64,"ТОВ Еврокопігруп",null,null,null,null,2240,20.9,"ТО комп. Техніки"]
[65,"ФОП Баклан",null,null,null,null,2240,21.3,"ремонт обладн. Харчоблоку"]
[66,"Фоп Мовлян",null,null,null,null,2240,7.2,"ремонт мед. Обладнання"]
[67,"ПАТ ДТЄК Київські електромережі",null,null,null,null,2240,3.7,"то лічильників тепла"]
[68,"ТОВ Сіменс медицина ",null,null,null,null,2240,7.2,"діагностика обл."]
[69,"ТОВ Будкваліфікадри",null,null,null,null,2282,6.8,"навчання персоналу"]
[70,"ТОВ Кантера паеккард",null,null,null,null,2240,2.4,"ремонт обладнання"]
[71,"Фоп Живкова",null,null,null,null,3110,106.9,"Аналізатор імуноферм."]
[72,"ТОВ Евротехніка",null,null,null,null,3110,81.5,"кондиціонери "]
[73,"ТОВ Інфотел комунікейшн",null,null,null,null,2240,7.2,"ремонт "]
[74,"ТОВ Інфотел комунікейшн",null,null,null,null,2210,2.9,"Цифров. Телефон "]
[75,"УКР ЦСМ",null,null,null,null,2240,0.7,"повірка обладнання"]
[76,"СВ Факторіал",null,null,null,null,2240,{"$f":"4.9+6.5","v":11.4},"розробка і затвердж.  кошт. Док."]
[77,"ФОП Міщянюк ",null,null,null,null,2240,3.2,"ремонт обладнання"]
[78,"ПРАТ ОСК Княжа",null,null,null,null,2240,1.7,"страхування"]
[79,"Фасадбудсервіс ",null,null,null,null,2210,5.4,"металопластикове вікно"]
[80,"Еврокопігруп",null,null,null,null,2210,4,"комплектуючі до комп. Обладн."]
[81,"Фоп Моїсеенко",null,null,null,null,3110,{"$f":"39.9+4.2","v":44.1},"Принтери"]
[82,"Укр. Буд. Рішення",null,null,null,null,2210,2.5,"Шафа телекомунікаційна "]
[83,"ФОП Степанюк",null,null,null,null,2210,5.2,"Столи"]
[84,"ТОВ Елпром ",null,null,null,null,2210,4.9000000000000004,"запчастини до обладнання"]
[85,"ТОВ БВД Трейд",null,null,null,null,2210,7.2,"Комплектуючі до комп\"ютерів"]
[86,"Тов Лакотрейд",null,null,null,null,2210,7,"госп. товари"]
[87,"ТОВ Дімленд",null,null,null,null,2210,7.2,"тех. Сіль"]
[88,"ФОП Коротченко",null,null,null,null,2210,7,"Миючі засоби"]
[89,"ФОП Максимчук",null,null,null,null,2210,7,"госп. Товари"]
[90,"Ініціатива +",null,6.4,"Акумулятори",{"$f":"D94","v":6.4},2210,null,{"$f":"E94","v":"Акумулятори"},{"$f":"D94","v":6.4}]
[91,"БФ Відродження ",null,{"$f":"37.5+5.8","v":43.3},"Медикаменти",{"$f":"D95","v":43.3},2220,null,{"$f":"E95","v":"Медикаменти"},{"$f":"D95","v":43.3}]
[92,"ГО Асоціація анастезіологів",null,{"$f":"2.7+3.1","v":5.8000000000000007},"Медикаменти",{"$f":"D96","v":5.8000000000000007},2220,null,{"$f":"E96","v":"Медикаменти"},5.8000000000000007]
[93,"Юрія фарм",null,791.8,"Медикаменти",{"$f":"D97","v":791.8},2220,null,{"$f":"E97","v":"Медикаменти"},791.8]
[94,"ТОВ \"Iнвада\"",null,null,null,null,2220,48.9,"медикаменти",0]
[95,"ТОВ \"АЛТ Україна Лтд\"",null,null,null,null,2220,7.2,"медикаменти",0]
[96,"ТОВ \"Дiалог Дiагностiкс\"",null,null,null,null,2220,48.5,"медикаменти",0]
[97,"ТОВ \"Лабвiта\"",null,null,null,null,2220,62.3,"реактиви",0]
[98,"ТОВ \"Медiпрайм\"",null,null,null,null,2220,36.9,"реактиви",0]
[99,"ТОВ \"Нова\"",null,null,null,null,2220,7.2,"медикаменти",0]
[100,"ТОВ \"Салюс\"",null,null,null,null,2220,1.3,"аптечка медична",0]
[101,"ТОВ \"Смартлаб Солюшен\"",null,null,null,null,2220,502.5,"реактиви"]
[102,"ТОВ \"Торговий Дiм \"ВОЛЕС\"",null,null,null,null,2220,20.8,"медикаменти"]
[103,"ТОВ \"Укрмедiаснаб\"",null,null,null,null,2220,1,"реактиви"]
[104,"ТОВ Фiрма \"Крiогенсервiс\"",null,null,null,null,2220,65.3,"кисень"]
[105,"ФОП Колодницький С.Й.",null,null,null,null,2220,293.8,"реактиви"]
[106,"ТОВ \"Сенсорнi системи України\"",null,null,null,null,3110,119.3,"інформаційне обладнання"]
[107,"ФОП Денисенко Д.О.",null,null,null,null,3110,34.200000000000003,"візок медичний"]
[108,"ФОП Давiскiба I.Є.",null,null,null,null,3110,33.9,"котел харчо варильний"]
[109,"ФОП Чорний Олександр Петрович",null,null,null,null,3110,25,"пристрій знімання кардіограм"]
[110,"ПП Мальчуковський В.С.",null,null,null,null,2210,1.3,"медбланки"]
[111,"ПП Остринська Л.В",null,null,null,null,2210,7.1,"медбланки"]
[112,"ПП\"ОмелiЯ-сервiс\"",null,null,null,null,2210,55,"Дорожне обладнання"]
[113,"ТОВ \"Аркуш Трейдинг\"",null,null,null,null,2210,33.9,"концтовари"]
[114,"ТОВ \"Видавнича група \"АС\"",null,null,null,null,2210,4.5,"періодичне видання"]
[115,"ТОВ \"Дiмлен\"",null,null,null,null,2210,7,"госптовари"]
[116,"ТОВ \"Єврокопi центр\"",null,null,null,null,2210,7.9,"стрічку чекову"]
[117,"ТОВ \"Лiзоформ Медiкал \"",null,null,null,null,2210,7.1,"мопи"]
[118,"ТОВ \"Меркурiй Експрес\"",null,null,null,null,2210,3.1,"періодичне видання"]
[119,"ТОВ \"Меркурiй Експрес\"",null,null,null,null,2210,4.0999999999999996,"періодичне видання"]
[120,"ТОВ \"МЦФЕР-Україна\"",null,null,null,null,2210,6.9,"журнал Держзакупiвлi"]
[121,"ТОВ\"Український папiр\"",null,null,null,null,2210,18.2,"папір для друку"]
[122,"ФОП Бiрюкова О.О.",null,null,null,null,2210,5.4,"стіл маніпуляційний"]
[123,"ФОП Ващенко Г.В",null,null,null,null,2210,44.5,"картридж"]
[124,"ФОП Коротченко А.О.",null,null,null,null,2210,6.4,"госптовари"]
[125,"ФОП Макарчук О.С",null,null,null,null,2210,31.5,"інвалідний візок"]
[126,"ФОП Небилович О.В.",null,null,null,null,2210,4.3,"тестер кабелю"]
[127,"ФОП Небилович О.В.",null,null,null,null,2210,2.8,"Інструменти"]
[128,"ФОП Сидоренко С.В.",null,null,null,null,2210,0.81,"канцтовари"]
[129,"ФОП Таран М.I.",null,null,null,null,2210,5.3,"персональний вортекс"]
[130,"ФОП Шлюпенков О.А.",null,null,null,null,2210,24.5,"медбланки"]
[131,"КП \"ФАРМАЦIЯ\"",null,null,null,null,2210,0.33,"медбланки"]
[132,"КП \"Головний iнформацiйно-обчислюваний",null,null,null,null,2240,13.5,"послуги з обслуг.прог. Заб"]
[133,"КП\"Профдезiнфекцiя\"",null,null,null,null,2240,7.2,"послуги дезактивації"]
[134,"НАСК \"Оранта\"",null,null,null,null,2240,0.5,"послуги страхування"]
[135,"ПАТ\"ДАК\"Лiки України\"",null,null,null,null,2240,1.7,"послуги зі зберігання"]
[136,"ПАТ\"ДТЕК Київськi електромережi\"",null,null,null,null,2240,4.9000000000000004,"послуги обсл. Ліч."]
[137,"РС СКП\"Київський крематорiй\"",null,null,null,null,2240,11.2,"послуги з кремації мед. відх."]
[138,"ТОВ \"Iнтермедика-Україна\"",null,null,null,null,2240,4.8,"послуги з пот. Рем.обл"]
[139,"ТОВ \"Бест Бiзнес\"",null,null,null,null,2240,18,"послуги інтернету"]
[140,"ТОВ \"Девелопер Полiсся\"",null,null,null,null,2240,42,"послуги з прання білизни"]
[141,"ТОВ \"Електроадвокат\"",null,null,null,null,2240,7,"послуги з інж.проект."]
[142,"ТОВ \"Єврокопi центр\"",null,null,null,null,2240,50.8,"послуги з пот. Рем.обл"]
[143,"ТОВ \"Олiмп-Безпека Сервiс\"",null,null,null,null,2240,37.6,"послуги з монтажу сигналіз."]
[144,"ТОВ \"Укрмедлаб\"",null,null,null,null,2240,2.4,"послуги з міжлабор. порівнянь"]
[145,"ТОВ \"Укрреммедтехнiка\"",null,null,null,null,2240,7.7,"послуги з гідростат. Випроб."]
[146,"ТОВ НВФ \"Iнпроект\"",null,null,null,null,2240,3.2,"послуги з проектування"]
[147,"ТОВ\"Iнформацiйних i аналiтичних технол",null,null,null,null,2240,5.8,"інформ. Консульт. Послуги"]
[148,"ТОВ\"Компанiя \"ЮТАС\"",null,null,null,null,2240,1.5,"послуги з ремонту та т/о"]
[149,"ТОВ\"Центр економiчної освiти\"",null,null,null,null,2240,3,"інформ. Консульт. Послуги"]
[150,"Управлiння полiцiї охорони в м.Києвi",null,null,null,null,2240,189.9,"послуги охорони"]
[151,"ФОП \"Кудла\"",null,null,null,null,2240,31.9,"інформ. Консульт. Послуги"]
[152,"ФОП Баклан О.Ф.",null,null,null,null,2240,7.1,"ремонт обл. харчоблоку"]
[153,"ТОВ \"Iнтермедика-Україна\"",null,null,null,null,2240,4.8,"послуги з пот. Рем.обл"]
[154,"ДСП\"Київ.держ.мiжобл.спец.комбiнат\"",null,null,null,null,2240,6.3,"послуги з дезактивації одягу"]
[155,"КМКЛ №7",null,null,null,null,2240,26.7,"послуги з мед огляду"]
[156,"КМНКЛ \"Соцiотерапiя\"",null,null,null,null,2240,5.8,"послуги з мед огляду"]
[157,"КМПД №5",null,null,null,null,2240,2.7,"послуги з мед огляду"]
[158,"КНП \"Консул.-дiагност. центр\"",null,null,null,null,2240,2.5,"послуги з мед огляду"]
[159,"КП \"Iнженерний центр\"",null,null,null,null,2240,4.5,"послуги з тех нагляду"]
[160,"ТОВ\"Європейський iнститут держ.управл.",null,null,null,null,2282,6.2,"навчання персоналу"]
[161,"СТ\"Iнженерний центр експертизи та серт",null,null,null,null,2282,1.6,"навчання персоналу"]
[162,"ТОВ\"НКЦ \"ЕНЕРГIЯ\"",null,null,null,null,2282,21.6,"навчання персоналу"]
[163,"ТОВ \"БПФ Україна\"",null,null,null,null,3132,173,"Капітальний ремонт"]
[164,"ТОВ \"Електромережбуд-7\"",null,null,null,null,3132,3.5,"Капітальний ремонт"]
[]
[null,"ВСЬОГО по закладу",{"$f":"SUM(C5:C32)","v":7295.1},{"$f":"SUM(D5:D169)","v":51862.900000000023},{"$f":"SUM(E5:E169)","v":0},{"$f":"SUM(F5:F169)","v":59158.000000000022},null,{"$f":"SUM(H6:H169)","v":3690.7000000000021},{"$f":"SUM(I6:I169)","v":0},{"$f":"SUM(J6:J169)","v":51862.900000000023},{"$f":"C170-H170","v":3604.3999999999983}]
[null,"Керівник установи",null,null,null,null,null,null,"Кондратенко А.В."]
["                                                                                                                                                                                       (підпис)           (ініціали і прізвище) "]
[null,"Головний бухгалтер",null,null,null,null,null,null,"Мамонова Т.Й."]
[null,null,null,null,null,"(підпис)           (ініціали і прізвище) "]

{"sheet":"соціотерапія","index":8,"n_rows":57,"n_cols":13,"rows_kept":57,"cut":false,"hidden":false,"merged":[[53,6,53,7],[55,6,55,7],[0,12,0,14],[1,12,1,15],[2,1,2,9],[3,0,3,10],[4,0,5,0],[4,1,5,1],[4,2,4,4],[4,5,5,5],[4,6,4,9],[4,10,5,10]]}
[null,null,null,null,null,null,null,null,null,null,null,null,"          Додаток до листа"]
[null,null,null,null,null,null,null,null,null,null,null,null,"         від ________ 2019 № ______"]
[null,"ІНФОРМАЦІЯ                                                                                                                                                                                                                                                                                                                                                                                                                    про надходження і використання благодійних пожертв від фізичних та юридичних осіб                                                                                                                                                     Київська міська наркологічна клінічна лікарня \"Соціотерапія\" за ІV квартал 2019 року "]
["                                                                                                                                            найменування закладу охорони здоров′я"]
["№ пп","Найменування юридичної особи (або позначення фізичної особи)","Благодійні пожертви, що були отримані закладом охорони здоров'я від фізичних та юридичних осіб",null,null,"Всього отримано благодійних пожертв, тис. грн","Використання закладом охорони здоров'я благодійних пожертв, отриманих у грошовій (товари і послуг) формі",null,null,null,"Залишок невикористаних грошових коштів, товарів та послуг на кінець звітного періоду,            тис. грн"]
[null,null,"В грошовій форм, тис. грн","В  натуральній формі (товари і послуги),    тис. грн","Перелік товарів і послуг в натуральній формі (канцтовари, господарські товари, будівельні товари, медикаменти та перев'язувальні матеріали, продукти харчування, м\"який інвентар, основні засоби та інші)",null,"Напрямки використання у грошовій формі (стаття витрат)","Сума,          тис. грн","Перелік використаних товарів та послуг у натуральній формі  (канцтовари, господарські товари, будівельні товари, медикаменти та перев'язувальні матеріали, продукти харчування, м\"який інвентар, основні засоби та інші)","Сума,          тис. грн"]
[null,"БФ\"Фундація Антиснід-України\"",null,{"$f":"3104/1000","v":3.1040000000000001},"канцтовари",{"$f":"SUM(C7,D7)","v":3.1040000000000001},null,null,"канцтовари",{"$f":"D7","v":3.1040000000000001}]
[null,"ФОП",null,2,"ІНМА",{"$f":"SUM(C8,D8)","v":2},null,null,"ІНМА",{"$f":"D8","v":2}]
[null,"Фізична особа",179.85,0,null,{"$f":"SUM(C9,D9)","v":179.85},"2210,2220,3110",80.84,"канцтовари,медикаменти,навчання",0,7.09]
[null,"БФ\"Фундація Антиснід-України\"",null,36.869,"вироби медичного призначення",36.869,null,null,"вироби медичного призначення",36.869]
[null,"МБФ\"Альянс громадського здоровя",null,163.2764,"вироби медичного призначення",163.2764,null,null,"вироби медичного призначення",163.2764]
[null,"БО\"Укріїнський інститут політики громадського здоровя\"",null,92.41,"вироби медичного призначення",92.41,null,null,"вироби медичного призначення",92.41]
[null,"БаДМ ТОВ",null,26.869,null,26.869,null,null,null,26.869]
[null,"Фармація КП",null,56.06,"медикаменти",56.06,null,null,"медикаменти",56.06]
[null,"ДП2Укрмедпостач\"МОЗ України",null,1493.87,"медикаменти",1493.87,null,null,"медикаменти",1493.8723]
[null,"АК \"КБ \"Приватбанк\"",null,3.3,"ІНМА",3.3,null,null,"ІНМА",{"$f":"D16","v":3.3}]
[null,null,null,null,null,0]
[null,null,null,null,null,0]
[null,null,null,null,null,0]
[null,null,null,null,null,0]
[null,null,null,null,null,0]
[null,null,null,null,null,0]
[null,null,null,null,null,0]
[null,null,null,null,null,0]
[null,null,null,null,null,0]
[null,null,null,null,null,0]
[null,null,null,null,null,0]
[null,null,null,null,null,0]
[null,null,null,null,null,0]
[null,null,null,null,null,0]
[null,null,null,null,null,0]
[null,null,null,null,null,0]
[null,null,null,null,null,0]
[null,null,null,null,null,0]
[null,null,null,null,null,0]
[null,null,null,null,null,0]
[null,null,null,null,null,0]
[null,null,null,null,null,0]
[null,null,null,null,null,0]
[null,null,null,null,null,0]
[null,null,null,null,null,0]
[null,null,null,null,null,0]
[null,null,null,null,null,0]
[null,null,null,null,null,0]
[null,null,null,null,null,0]
[null,null,null,null,null,0]
[null,null,null,null,null,0]
[null,null,null,null,null,0]
[null,null,null,null,null,0]
[null,null,null,null,null,0]
[null,"ВСЬОГО по закладу",{"$f":"SUM(C7:C50)","v":179.85},{"$f":"SUM(D7:D50)","v":1877.7583999999999},null,2057.6084000000001,null,{"$f":"SUM(H7:H50)","v":80.84},null,{"$f":"SUM(J7:J50)","v":1877.7607},{"$f":"C51-H51","v":99.009999999999991}]
[]
[]
[null,"Керівник установи"]
[null,null,null,null,null,"(підпис)           (ініціали і прізвище) "]
[null,"Головний бухгалтер"]
[null,null,null,null,null,"(підпис)           (ініціали і прізвище) "]

{"sheet":"чорнобиль","index":9,"n_rows":55,"n_cols":13,"rows_kept":55,"cut":false,"hidden":false,"merged":[[51,6,51,7],[52,5,52,7],[53,6,53,7],[54,5,54,7],[0,12,0,14],[1,12,1,15],[2,1,2,9],[3,0,3,10],[4,0,5,0],[4,1,5,1],[4,2,4,4],[4,5,5,5],[4,6,4,9],[4,10,5,10]]}
[null,null,null,null,null,null,null,null,null,null,null,null,"          Додаток до листа"]
[null,null,null,null,null,null,null,null,null,null,null,null,"         Від 28.12.2019 2019 № 061-12683"]
[null,"                                                                                               ІНФОРМАЦІЯ                                                                                                                                                                                                                                                                                                                                                                                   про надходження і використання благодійних пожертв від фізичних та юридичних осіб                                      по Київському міському центрі радіаційного захисту населення м.Києва від наслідків  Чорнобильської катастрофи      за   ІV  квартал  2019 року  "]
["             "]
["№ пп","Найменування юридичної особи (або позначення фізичної особи)","Благодійні пожертви, що були отримані закладом охорони здоров'я від фізичних та юридичних осіб",null,null,"Всього отримано благодійних пожертв, тис. грн","Використання закладом охорони здоров'я благодійних пожертв, отриманих у грошовій (товари і послуг) формі",null,null,null,"Залишок невикористаних грошових коштів, товарів та послуг на кінець звітного періоду,            тис. грн"]
[null,null,"В грошовій форм, тис. грн","В  натуральній формі (товари і послуги),    тис. грн","Перелік товарів і послуг в натуральній формі (канцтовари, господарські товари, будівельні товари, медикаменти та перев'язувальні матеріали, продукти харчування, м\"який інвентар, основні засоби та інші)",null,"Напрямки використання у грошовій формі (стаття витрат)","Сума,          тис. грн","Перелік використаних товарів та послуг у натуральній формі  (канцтовари, господарські товари, будівельні товари, медикаменти та перев'язувальні матеріали, продукти харчування, м\"який інвентар, основні засоби та інші)","Сума,          тис. грн"]
[1,"Фізичні особи",32.700000000000003,null,null,{"$f":"SUM(C7,D7)","v":32.700000000000003}]
[2,"Міжнародна благодійна організація “Козацький фонд Альбатрос”",null,1.71,"предмети ,матеріали та інвентар",1.71,null,null,"предмети ,матеріали та інвентар",{"$f":"D8","v":1.71}]
[3,"ТОВ “ГЛЕДФАРМ ЛТД”",null,4.09,"Медикаменти та перев”язувальні матеріали ",4.09,null,null,"Медикаменти та перев”язувальні матеріали ",{"$f":"D9","v":4.09}]
[4,"Фізичні особи",null,0.71,"предмети ,матеріали та інвентар",0.71,null,null,"предмети ,матеріали та інвентар",{"$f":"D10","v":0.71}]
[null,null,null,null,null,0,3110,26.4,"Придбання обладнання і предметів довгострокового користування"]
[null,null,null,null,null,0]
[null,null,null,null,null,0]
[null,null,null,null,null,0]
[null,null,null,null,null,0]
[null,null,null,null,null,0]
[null,null,null,null,null,0]
[null,null,null,null,null,0]
[null,null,null,null,null,0]
[null,null,null,null,null,0]
[null,null,null,null,null,0]
[null,null,null,null,null,0]
[null,null,null,null,null,0]
[null,null,null,null,null,0]
[null,null,null,null,null,0]
[null,null,null,null,null,0]
[null,null,null,null,null,0]
[null,null,null,null,null,0]
[null,null,null,null,null,0]
[null,null,null,null,null,0]
[null,null,null,null,null,0]
[null,null,null,null,null,0]
[null,null,null,null,null,0]
[null,null,null,null,null,0]
[null,null,null,null,null,0]
[null,null,null,null,null,0]
[null,null,null,null,null,0]
[null,null,null,null,null,0]
[null,null,null,null,null,0]
[null,null,null,null,null,0]
[null,null,null,null,null,0]
[null,null,null,null,null,0]
[null,null,null,null,null,0]
[null,null,null,null,null,0]
[null,null,null,null,null,0]
[null,null,null,null,null,0]
[null,null,null,null,null,0]
[null,null,null,null,null,0]
[null,null,null,null,null,0]
[null,"ВСЬОГО по закладу",{"$f":"SUM(C7:C49)","v":32.700000000000003},{"$f":"SUM(D7:D49)","v":6.51},null,39.21,null,{"$f":"SUM(H7:H49)","v":26.4},null,{"$f":"SUM(J7:J49)","v":6.51},{"$f":"C50-H50","v":6.3000000000000043}]
[]
[null,"Керівник установи",null,null,null,null,"Н.М.Поліщук"]
[null,null,null,null,null,"(підпис)           (ініціали і прізвище) "]
[null,"Головний бухгалтер",null,null,null,null,"А.Ю.Дерій"]
[null,null,null,null,null,"(підпис)           (ініціали і прізвище) "]

{"sheet":"центр мікрохірургії ока","index":10,"n_rows":56,"n_cols":13,"rows_kept":56,"cut":false,"hidden":false,"merged":[[52,6,52,7],[54,6,54,7],[2,1,2,9],[3,0,3,10],[4,0,5,0],[4,1,5,1],[4,2,4,4],[4,5,5,5],[4,6,4,9],[4,10,5,10]]}
[null,null,null,null,null,null,null,null,null,null,null,null,"          Додаток до листа"]
[null,null,null,null,null,null,null,null,null,null,null,null,"             від ________ 2018 № ______"]
[null,"ІНФОРМАЦІЯ                                                                                                                                                                                                                                                                                                                                                                                                                    про надходження і використання благодійних пожертв від фізичних та юридичних осіб                                                                                                                                                     Київська міська клінічна офтальмологічна лікарня \"Центр мікрохірургії ока\" за ІV квартал 2019 року "]
["                                                                                                                                            найменування закладу охорони здоров′я"]
["№ пп","Найменування юридичної особи (або позначення фізичної особи)","Благодійні пожертви, що були отримані закладом охорони здоров'я від фізичних та юридичних осіб",null,null,"Всього отримано благодійних пожертв, тис. грн","Використання закладом охорони здоров'я благодійних пожертв, отриманих у грошовій (товари і послуг) формі",null,null,null,"Залишок невикористаних грошових коштів, товарів та послуг на кінець звітного періоду,            тис. грн"]
[null,null,"В грошовій форм, тис. грн","В  натуральній формі (товари і послуги),    тис. грн","Перелік товарів і послуг в натуральній формі (канцтовари, господарські товари, будівельні товари, медикаменти та перев'язувальні матеріали, продукти харчування, м\"який інвентар, основні засоби та інші)",null,"Напрямки використання у грошовій формі (стаття витрат)","Сума,          тис. грн","Перелік використаних товарів та послуг у натуральній формі  (канцтовари, господарські товари, будівельні товари, медикаменти та перев'язувальні матеріали, продукти харчування, м\"який інвентар, основні засоби та інші)","Сума,          тис. грн"]
[1,"Фізичні особи",7.15,250.5,"ремонтні роботи",{"$f":"SUM(C7,D7)","v":257.64999999999998},null,null,"рементні роботи",250.5]
[2,null,null,null,null,{"$f":"SUM(C8,D8)","v":0}]
[3,null,null,null,null,0]
[4,null,null,null,null,0]
[5,null,null,null,null,0]
[6,null,null,null,null,0]
[null,null,null,null,null,0]
[null,null,null,null,null,0]
[null,null,null,null,null,0]
[null,null,null,null,null,0]
[null,null,null,null,null,0]
[null,null,null,null,null,0]
[null,null,null,null,null,0]
[null,null,null,null,null,0]
[null,null,null,null,null,0]
[null,null,null,null,null,0]
[null,null,null,null,null,0]
[null,null,null,null,null,0]
[null,null,null,null,null,0]
[null,null,null,null,null,0]
[null,null,null,null,null,0]
[null,null,null,null,null,0]
[null,null,null,null,null,0]
[null,null,null,null,null,0]
[null,null,null,null,null,0]
[null,null,null,null,null,0]
[null,null,null,null,null,0]
[null,null,null,null,null,0]
[null,null,null,null,null,0]
[null,null,null,null,null,0]
[null,null,null,null,null,0]
[null,null,null,null,null,0]
[null,null,null,null,null,0]
[null,null,null,null,null,0]
[null,null,null,null,null,0]
[null,null,null,null,null,0]
[null,null,null,null,null,0]
[null,null,null,null,null,0]
[null,null,null,null,null,0]
[null,null,null,null,null,0]
[null,null,null,null,null,0]
[null,null,null,null,null,0]
[null,null,null,null,null,0]
[null,"ВСЬОГО по закладу",{"$f":"SUM(C7:C49)","v":7.15},{"$f":"SUM(D7:D49)","v":250.5},null,257.64999999999998,null,{"$f":"SUM(H7:H49)","v":0},null,{"$f":"SUM(J7:J49)","v":250.5},{"$f":"C50-H50","v":7.15}]
[]
[]
[null,"Заступник головного лікаря з амбулаторно-поліклінічної роботи",null,null,null,null,"Лява В.Б."]
[null,null,null,null,null,"(підпис)           (ініціали і прізвище) "]
[null,"Головний бухгалтер",null,null,null,null,"Ляшенко К.І."]
[null,null,null,null,null,"(підпис)           (ініціали і прізвище) "]

{"sheet":"центр спорт медицини","index":11,"n_rows":56,"n_cols":13,"rows_kept":56,"cut":false,"hidden":false,"merged":[[52,6,52,7],[54,6,54,7],[2,1,2,9],[3,0,3,10],[4,0,5,0],[4,1,5,1],[4,2,4,4],[4,5,5,5],[4,6,4,9],[4,10,5,10]]}
[null,null,null,null,null,null,null,null,null,null,null,null,"          Додаток до листа"]
[null,null,null,null,null,null,null,null,null,null,null,null,"             від ________ 2018 № ______"]
[null,"ІНФОРМАЦІЯ                                                                                                                                                                                                                                                                                                                                                                                                                    про надходження і використання благодійних пожертв від фізичних та юридичних осіб                                                                                                                                                     КНП Центр спортивної медицини міста Києва за 4 квартал 2019 року "]
["                                                                                                                                            найменування закладу охорони здоров′я"]
["№ пп","Найменування юридичної особи (або позначення фізичної особи)","Благодійні пожертви, що були отримані закладом охорони здоров'я від фізичних та юридичних осіб",null,null,"Всього отримано благодійних пожертв, тис. грн","Використання закладом охорони здоров'я благодійних пожертв, отриманих у грошовій (товари і послуг) формі",null,null,null,"Залишок невикористаних грошових коштів, товарів та послуг на кінець звітного періоду,            тис. грн"]
[null,null,"В грошовій форм, тис. грн","В  натуральній формі (товари і послуги),    тис. грн","Перелік товарів і послуг в натуральній формі (канцтовари, господарські товари, будівельні товари, медикаменти та перев'язувальні матеріали, продукти харчування, м\"який інвентар, основні засоби та інші)",null,"Напрямки використання у грошовій формі (стаття витрат)","Сума,          тис. грн","Перелік використаних товарів та послуг у натуральній формі  (канцтовари, господарські товари, будівельні товари, медикаменти та перев'язувальні матеріали, продукти харчування, м\"який інвентар, основні засоби та інші)","Сума,          тис. грн"]
[1,"Фізична особа",1243,null,null,{"$f":"SUM(C7,D7)","v":1243},2210,201.1]
[null,null,null,null,null,{"$f":"SUM(C8,D8)","v":0},2220,25.5]
[null,null,null,null,null,0,2230,55.9]
[null,null,null,null,null,0,2240,215.1]
[null,null,null,null,null,0,2280,24.5]
[null,null,null,null,null,0,3110,306]
[null,null,null,null,null,0]
[null,null,null,null,null,0]
[null,null,null,null,null,0]
[null,null,null,null,null,0]
[null,null,null,null,null,0]
[null,null,null,null,null,0]
[null,null,null,null,null,0]
[null,null,null,null,null,0]
[null,null,null,null,null,0]
[null,null,null,null,null,0]
[null,null,null,null,null,0]
[null,null,null,null,null,0]
[null,null,null,null,null,0]
[null,null,null,null,null,0]
[null,null,null,null,null,0]
[null,null,null,null,null,0]
[null,null,null,null,null,0]
[null,null,null,null,null,0]
[null,null,null,null,null,0]
[null,null,null,null,null,0]
[null,null,null,null,null,0]
[null,null,null,null,null,0]
[null,null,null,null,null,0]
[null,null,null,null,null,0]
[null,null,null,null,null,0]
[null,null,null,null,null,0]
[null,null,null,null,null,0]
[null,null,null,null,null,0]
[null,null,null,null,null,0]
[null,null,null,null,null,0]
[null,null,null,null,null,0]
[null,null,null,null,null,0]
[null,null,null,null,null,0]
[null,null,null,null,null,0]
[null,null,null,null,null,0]
[null,null,null,null,null,0]
[null,null,null,null,null,0]
[null,"ВСЬОГО по закладу",{"$f":"SUM(C7:C49)","v":1243},{"$f":"SUM(D7:D49)","v":0},null,1243,null,{"$f":"SUM(H7:H49)","v":828.1},null,{"$f":"SUM(J7:J49)","v":0},{"$f":"C50-H50","v":414.9}]
[]
[]
[null,"Керівник установи"]
[null,null,null,null,null,"(підпис)           (ініціали і прізвище) "]
[null,"Головний бухгалтер"]
[null,null,null,null,null,"(підпис)           (ініціали і прізвище) "]

{"sheet":"трансп кіст мозку","index":12,"n_rows":24,"n_cols":11,"rows_kept":24,"cut":false,"hidden":false,"merged":[[17,6,17,7],[19,6,19,7],[1,1,1,9],[2,0,2,10],[3,0,4,0],[3,1,4,1],[3,2,3,4],[3,5,4,5],[3,6,3,9],[3,10,4,10]]}
[]
[null,"ІНФОРМАЦІЯ                                                                                                                                                                                                                                                                                                                                                                                                                    про надходження і використання благодійних пожертв від фізичних та юридичних осіб                                                                                                                                                     Київський центр трансплантації кісткового мозку за  ІV квартал 2019 року "]
["                                                                                                                                            найменування закладу охорони здоров′я"]
["№ пп","Найменування юридичної особи (або позначення фізичної особи)","Благодійні пожертви, що були отримані закладом охорони здоров'я від фізичних та юридичних осіб",null,null,"Всього отримано благодійних пожертв, тис. грн","Використання закладом охорони здоров'я благодійних пожертв, отриманих у грошовій (товари і послуг) формі",null,null,null,"Залишок невикористаних грошових коштів, товарів та послуг на кінець звітного періоду,            тис. грн"]
[null,null,"В грошовій форм, тис. грн","В  натуральній формі (товари і послуги),    тис. грн","Перелік товарів і послуг в натуральній формі (канцтовари, господарські товари, будівельні товари, медикаменти та перев'язувальні матеріали, продукти харчування, м\"який інвентар, основні засоби та інші)",null,"Напрямки використання у грошовій формі (стаття витрат)","Сума,          тис. грн","Перелік використаних товарів та послуг у натуральній формі  (канцтовари, господарські товари, будівельні товари, медикаменти та перев'язувальні матеріали, продукти харчування, м\"який інвентар, основні засоби та інші)","Сума,          тис. грн"]
[1,"КНП \"Київський міський центр крові\"",null,284.27999999999997,"гемотрансфузійні засоби",{"$f":"C6+D6","v":284.27999999999997},null,null,"гемотрансфузійні засоби",293.51]
[2,"КЛПЗ \"Чернігівська обласна дитяча лікарня\"",null,18.039000000000001,"медикаменти",{"$f":"C7+D7","v":18.039000000000001},2220,9.93,"медикаменти",18.190000000000001]
[3,"Фізична особа",1.7709999999999999,null,"медикаменти",{"$f":"SUM(C8,D8)","v":1.7709999999999999},2210,9.5,"господарчі товари"]
[4,"ТОВ \"ТРАНСМЕД\"",null,1177,"основні засоби",1177,2210,4.3979999999999997,"попередня оплата за періодичні видання"]
[null,null,null,null,null,0,null,null,"інші необоротні активи",1.88]
[null,null,null,null,null,0]
[null,null,null,null,null,0]
[null,"ВСЬОГО по закладу",{"$f":"SUM(C6:C12)","v":1.7709999999999999},{"$f":"SUM(D6:D12)","v":1479.319},null,1481.09,null,{"$f":"SUM(H6:H12)","v":23.827999999999999},null,{"$f":"SUM(J6:J12)","v":313.58},{"$f":"C13-H13","v":-22.056999999999999}]
[]
[]
[]
[]
[null,"Голова комісії з реорганізації",null,null,null,null,"Бодня А.О."]
[null,null,null,null,null,"(підпис)           (ініціали і прізвище) "]
[null,"Заступник голови комісії з реорганізації",null,null,null,null,"Ригалюк О.І."]
[null,null,null,null,null,"(підпис)           (ініціали і прізвище) "]
[]
[]
[null,"Виконавець: Аврашко О.А. тел.451-15-80"]

{"sheet":"дитяч нейрохірургія","index":13,"n_rows":56,"n_cols":13,"rows_kept":56,"cut":false,"hidden":false,"merged":[[52,6,52,7],[54,6,54,7],[0,12,0,14],[1,12,1,15],[2,1,2,9],[3,0,3,10],[4,0,5,0],[4,1,5,1],[4,2,4,4],[4,5,5,5],[4,6,4,9],[4,10,5,10]]}
[null,null,null,null,null,null,null,null,null,null,null,null,"          Додаток до листа"]
[null,null,null,null,null,null,null,null,null,null,null,null,"         від ________ 2019 № ______"]
[null,"ІНФОРМАЦІЯ                                                                                                                                                                                                                                                                                                                                                                                                                    про надходження і використання благодійних пожертв від фізичних та юридичних осіб                                                                                                                                                     _Київський міський центр дитячої нейрохірургії_за_IV_квартал_2019_року "]
["                                                                                                                                            найменування закладу охорони здоров′я"]
["№ пп","Найменування юридичної особи (або позначення фізичної особи)","Благодійні пожертви, що були отримані закладом охорони здоров'я від фізичних та юридичних осіб",null,null,"Всього отримано благодійних пожертв, тис. грн","Використання закладом охорони здоров'я благодійних пожертв, отриманих у грошовій (товари і послуг) формі",null,null,null,"Залишок невикористаних грошових коштів, товарів та послуг на кінець звітного періоду,            тис. грн"]
[null,null,"В грошовій форм, тис. грн","В  натуральній формі (товари і послуги),    тис. грн","Перелік товарів і послуг в натуральній формі (канцтовари, господарські товари, будівельні товари, медикаменти та перев'язувальні матеріали, продукти харчування, м\"який інвентар, основні засоби та інші)",null,"Напрямки використання у грошовій формі (стаття витрат)","Сума,          тис. грн","Перелік використаних товарів та послуг у натуральній формі  (канцтовари, господарські товари, будівельні товари, медикаменти та перев'язувальні матеріали, продукти харчування, м\"який інвентар, основні засоби та інші)","Сума,          тис. грн"]
[1,"Фізична особа",26.46,null,null,{"$f":"SUM(C7,D7)","v":26.46},null,null,"Проїздний квиток",1.74]
[2,"ТОВ \"НПЦНР Нодус\"",17.059999999999999,null,null,{"$f":"SUM(C8,D8)","v":17.059999999999999},null,null,"Оплата водопостачання та водовідвелення",6.7279999999999998]
[null,null,null,null,null,0,2250,1.74,"Оплата електроенергіі",5.95]
[null,null,null,null,null,0,2272,6.7279999999999998,"Оплата послуг з метрологічних повірок",3.5]
[null,null,null,null,null,0,2273,5.95,"Оплата послуг програмного забезпечення",15.006]
[null,null,null,null,null,0,2240,18.506]
[null,null,null,null,null,0]
[null,null,null,null,null,0]
[null,null,null,null,null,0]
[null,null,null,null,null,0]
[null,null,null,null,null,0]
[null,null,null,null,null,0]
[null,null,null,null,null,0]
[null,null,null,null,null,0]
[null,null,null,null,null,0]
[null,null,null,null,null,0]
[null,null,null,null,null,0]
[null,null,null,null,null,0]
[null,null,null,null,null,0]
[null,null,null,null,null,0]
[null,null,null,null,null,0]
[null,null,null,null,null,0]
[null,null,null,null,null,0]
[null,null,null,null,null,0]
[null,null,null,null,null,0]
[null,null,null,null,null,0]
[null,null,null,null,null,0]
[null,null,null,null,null,0]
[null,null,null,null,null,0]
[null,null,null,null,null,0]
[null,null,null,null,null,0]
[null,null,null,null,null,0]
[null,null,null,null,null,0]
[null,null,null,null,null,0]
[null,null,null,null,null,0]
[null,null,null,null,null,0]
[null,null,null,null,null,0]
[null,null,null,null,null,0]
[null,null,null,null,null,0]
[null,null,null,null,null,0]
[null,null,null,null,null,0]
[null,null,null,null,null,0]
[null,null,null,null,null,0]
[null,"ВСЬОГО по закладу",{"$f":"SUM(C7:C49)","v":43.519999999999996},{"$f":"SUM(D7:D49)","v":0},null,43.519999999999996,null,{"$f":"SUM(H7:H49)","v":32.923999999999999},null,{"$f":"SUM(J7:J49)","v":32.923999999999999},{"$f":"C50-H50","v":10.595999999999997}]
[]
[]
[null,"Головний лікар",null,null,null,null,"Гончарук О.Б."]
[null,null,null,null,null,"(підпис)           (ініціали і прізвище) "]
[null,"Головний бухгалтер",null,null,null,null,"Болтенко О.Г."]
[null,null,null,null,null,"(підпис)           (ініціали і прізвище) "]

{"sheet":"академія здоров людини","index":14,"n_rows":56,"n_cols":13,"rows_kept":56,"cut":false,"hidden":false,"merged":[[52,6,52,7],[54,6,54,7],[2,1,2,9],[3,0,3,10],[4,0,5,0],[4,1,5,1],[4,2,4,4],[4,5,5,5],[4,6,4,9],[4,10,5,10]]}
[null,null,null,null,null,null,null,null,null,null,null,null,"          Додаток до листа"]
[null,null,null,null,null,null,null,null,null,null,null,null,"             від ________ 2019 № ______"]
[null,"ІНФОРМАЦІЯ                                                                                                                                                                                                                                                                                                                                                                                                                    про надходження і використання благодійних пожертв від фізичних та юридичних осіб                                                                                                                                                     КНП \"Академія здоров'я людини\"_за IV квартал 2019 року "]
["                                                                                                                                            найменування закладу охорони здоров′я"]
["№ пп","Найменування юридичної особи (або позначення фізичної особи)","Благодійні пожертви, що були отримані закладом охорони здоров'я від фізичних та юридичних осіб",null,null,"Всього отримано благодійних пожертв, тис. грн","Використання закладом охорони здоров'я благодійних пожертв, отриманих у грошовій (товари і послуг) формі",null,null,null,"Залишок невикористаних грошових коштів, товарів та послуг на кінець звітного періоду,            тис. грн"]
[null,null,"В грошовій форм, тис. грн","В  натуральній формі (товари і послуги),    тис. грн","Перелік товарів і послуг в натуральній формі (канцтовари, господарські товари, будівельні товари, медикаменти та перев'язувальні матеріали, продукти харчування, м\"який інвентар, основні засоби та інші)",null,"Напрямки використання у грошовій формі (стаття витрат)","Сума,          тис. грн","Перелік використаних товарів та послуг у натуральній формі  (канцтовари, господарські товари, будівельні товари, медикаменти та перев'язувальні матеріали, продукти харчування, м\"який інвентар, основні засоби та інші)","Сума,          тис. грн"]
[1,"Фізична особа",588.1,null,null,{"$f":"SUM(C7,D7)","v":588.1},2240,0.3,"касове обслуг, "]
[2,null,null,null,null,{"$f":"SUM(C8,D8)","v":0},2230,42.4,"харчування"]
[null,null,null,null,null,0,2220,10.7,"медикаменти"]
[null,null,null,null,null,0,3110,534.70000000000005,"медичне обладнання"]
[null,null,null,null,null,0]
[null,null,null,null,null,0]
[null,null,null,null,null,0]
[null,null,null,null,null,0]
[null,null,null,null,null,0]
[null,null,null,null,null,0]
[null,null,null,null,null,0]
[null,null,null,null,null,0]
[null,null,null,null,null,0]
[null,null,null,null,null,0]
[null,null,null,null,null,0]
[null,null,null,null,null,0]
[null,null,null,null,null,0]
[null,null,null,null,null,0]
[null,null,null,null,null,0]
[null,null,null,null,null,0]
[null,null,null,null,null,0]
[null,null,null,null,null,0]
[null,null,null,null,null,0]
[null,null,null,null,null,0]
[null,null,null,null,null,0]
[null,null,null,null,null,0]
[null,null,null,null,null,0]
[null,null,null,null,null,0]
[null,null,null,null,null,0]
[null,null,null,null,null,0]
[null,null,null,null,null,0]
[null,null,null,null,null,0]
[null,null,null,null,null,0]
[null,null,null,null,null,0]
[null,null,null,null,null,0]
[null,null,null,null,null,0]
[null,null,null,null,null,0]
[null,null,null,null,null,0]
[null,null,null,null,null,0]
[null,null,null,null,null,0]
[null,null,null,null,null,0]
[null,null,null,null,null,0]
[null,null,null,null,null,0]
[null,"ВСЬОГО по закладу",{"$f":"SUM(C7:C49)","v":588.1},{"$f":"SUM(D7:D49)","v":0},null,588.1,null,{"$f":"SUM(H7:H49)","v":588.1},null,{"$f":"SUM(J7:J49)","v":0},{"$f":"C50-H50","v":0}]
[]
[]
[null,"Директор",null,null,null,null,"Чермак І.І."]
[null,null,null,null,null,"(підпис)           (ініціали і прізвище) "]
[null,"Головний бухгалтер",null,null,null,null,"Затуливітер О.В."]
[null,null,null,null,null,"(підпис)           (ініціали і прізвище) "]